{"text_format":"2","workbook":"xlsx","n_sheets":1,"sheets":["Sheet1"],"not_rendered":{"charts":0,"images":0,"macros":0,"external_links":0,"defined_names":0,"comments":0,"pivot_tables":0},"unopened":[],"bounds":{"document_bytes":16777216,"sheet_cells":100000,"run_cost":"one","rows_first":2000,"rows_last":500,"rows_between":2000,"halvings":0,"cell_chars":16384,"cell_head_chars":4096},"cells_cut":0,"cells_raw":0,"read":"whole","date_system":"1900"}

{"sheet":"Sheet1","index":0,"n_rows":221,"n_cols":4,"rows_kept":221,"cut":false,"hidden":false,"merged":[[1,0,1,3],[3,0,3,3],[7,0,7,1],[7,2,7,3],[4,0,4,3],[5,0,5,3],[9,2,9,3],[85,0,85,3],[76,0,76,3],[45,0,45,3],[26,0,26,3],[15,0,15,3],[0,0,0,3],[132,0,132,3],[118,0,118,3],[103,0,103,3],[181,0,181,3],[192,0,192,3],[201,0,201,3],[206,0,206,3],[155,0,155,3],[147,0,147,3],[110,0,110,3]]}
["Formulaire de commande de livres"]
["pour les fêtes de fin d'année"]
[]
["A renvoyer pour le mercredi 4 novembre 2020 à bibliosaintaugustin@yahoo.fr "]
["Paiement pour le 6 novembre sur le compte Bibliothèque St Augustin n° BE28 7320 3457 7420 "]
["Avec en communication :  Commande livres - Classe, Nom, Prénom de l'aîné de famille"]
[]
["Classe de l'aîné de famille : ",null,"Indiquez la classe ici"]
[]
["Nom et prénom de l'aîné de famille : ",null,"Indiquez le nom ici"]
[]
["Indiquez la quantité souhaitée devant chaque livre et le total se fera automatiquement"]
[]
[null,null,"Total général",{"$f":"D221","v":"0"}]
[]
["Les Editions Marmottons"]
["Quantité",null,"Prix unitaire","Total"]
[null,"Plus vite Elliot, nom d'une carotte! - le livre",16.0,{"$f":"A18*C18","v":"0"}]
[null,"Plus vite Elliot, nom d'une carotte! - Brochure pédagogique (parents)",10.0,"0"]
[null,"Plus vite Elliot, nom d'une carotte! - le livret d'activités (enfants)",10.0,"0"]
[null,"Plus vite Elliot, nom d'une carotte! - la pochette de 5 cartes postales",8.0,"0"]
[null,"Jules le jardinier - le livre",16.0,"0"]
[null,"Jules le jardinier - la brochure pédagogique (parents)",10.0,"0"]
[null,"Jules le jardinier - le livret d'activités (enfants)",10.0,"0"]
[null,"Jules le jardinier - la pochette de 5 cartes postales",8.0,"0"]
[]
["J'apprends à lire Montessori"]
["Quantité",null,"Prix unitaire","Total"]
[null,"Lola à la mer - Niv. 1",3.85,{"$f":"A29*C29","v":"0"}]
[null,"La serre de mamie - Niv. 1",3.85,"0"]
[null,"Nuk, petit inuit - Niv. 1",3.85,"0"]
[null,"L'île du koala - Niv. 1",3.85,"0"]
[null,"Lapin malin - Niv. 2 - son \"in\"",3.85,"0"]
[null,"Le grand volcan - Niv. 2 - son \"an\"",3.85,"0"]
[null,"La nuit des étoiles - Niv. 2 - son \"oi\"",3.85,"0"]
[null,"Lou et les fourmis - Niv. 2 - son \"ou\"",3.85,"0"]
[null,"Cap vers le sud - Niv. 2 - son \"gn\"",3.85,"0"]
[null,"La forêt de Léon - Niv. 2 - son \"on\"",3.85,"0"]
[null,"Bravo Chamlo ! - Niv. 2 - son \"ch\"",3.85,"0"]
[null,"Léo à la pêche - Niv. 3 - son \"o, au, eau\"",3.85,"0"]
[null,"Le gros orage - Niv. 3 - son \"j\"",3.85,"0"]
[null,"La guitare de Gaspard - Niv. 3 - son \"gu\"",3.85,"0"]
[null,"Louise et le lézard - Niv. 3 - son \"z\"",3.85,"0"]
[null,"Juliette aime la planète - Niv. 3 - son \"è\"",3.85,"0"]
[]
["Sami et Julie"]
["Quantité",null,"Prix unitaire","Total"]
[null,"Sami à l'école - Niv. 1",2.9,{"$f":"A48*C48","v":"0"}]
[null,"La fête de Sami - Niv. 1",2.9,"0"]
[null,"Sami rêve - Niv. 1",2.9,"0"]
[null,"Les pirates - Niv. 1",2.9,"0"]
[null,"5 histoires de Noël - Niv. 1",12.5,"0"]
[null,"Sami et Julie à la fête de la musique - Niv. 2",2.9,"0"]
[null,"Poisson d'avril! - Niv. 2",2.9,"0"]
[null,"Sami et Julie au camping - Niv. 2",2.9,"0"]
[null,"Le carnaval de Sami et Julie - Niv. 2",2.9,"0"]
[null,"La partie de cache-cache - Niv. 2",2.9,"0"]
[null,"Sami et Julie rencontrent Tobi - Niv. 2",2.9,"0"]
[null,"Sami fait de la magie - Niv. 2",2.9,"0"]
[null,"Les super cartes de Sami - Niv. 3",2.9,"0"]
[null,"Sami et Julie au Parc d'attraction - Niv. 3",2.9,"0"]
[null,"Sami à la pêche - Niv. 3",2.9,"0"]
[null,"La veillée de Noël - Niv. 3",2.9,"0"]
[null,"Sami et les pompiers - Niv. 3",2.9,"0"]
[null,"Sami et Julie, champions de ski - Niv. 3",2.9,"0"]
[null,"Julie veut devenir vétérinaire - Niv. 4",2.9,"0"]
[null,"Sami et Julie et la magie de Noël - Niv. 4",2.9,"0"]
[null,"Sami et Julie à Londres - Niv. 4",2.9,"0"]
[null,"Le défi nature de Sami et Julie - Niv. 4",2.9,"0"]
[null,"La pyjama party de Julie - Niv. 4",2.9,"0"]
[null,"A la découverte des dinosaures - Niv. 4",2.9,"0"]
[null,"100 blagues pour la récré",4.85,"0"]
[null,"100 blagues, charades et devinettes de Sami et Julie",4.85,"0"]
[null,"101 blagues, charades et devinettes Vol. 2",4.85,"0"]
[null,"Sami et Julie 100 énigmes, spécial frissons",4.85,"0"]
[]
["La Cabane à étages"]
["Quantité",null,"Prix unitaire","Total"]
[null,"La cabane à 13 étages",7.8,{"$f":"A79*C79","v":"0"}]
[null,"La cabane à 26 étages",7.8,"0"]
[null,"La cabane à 39 étages",7.8,"0"]
[null,"La cabane à 52 étages",7.8,"0"]
[null,"La cabane à 65 étages",7.8,"0"]
[null,"La cabane à 78 étages",7.8,"0"]
[]
["Journal d'un dégonflé"]
["Quantité",null,"Prix unitaire","Total"]
[null,"T1. Carnet de bord de Greg Heffley",12.5,{"$f":"A88*C88","v":"0"}]
[null,"T2. Rodrick fait sa loi",12.5,"0"]
[null,"T3. Top, c'est trop",12.5,"0"]
[null,"T 4. Ça fait suer !",12.5,"0"]
[null,"T 5. La vérité toute moche",12.5,"0"]
[null,"T 6. Carrément claustro!",12.5,"0"]
[null,"T 7. Un coeur à prendre",12.5,"0"]
[null,"T 8. Pas de bol!",12.5,"0"]
[null,"T 9. Un looong voyage",12.5,"0"]
[null,"T 10. Zéro réseau",12.5,"0"]
[null,"T 11. Double peine",12.5,"0"]
[null,"T 12. Sauve qui peut",12.5,"0"]
[null,"T 13. Totalement givré!",12.5,"0"]
[null,"T 14. Ça déménage!",12.5,"0"]
[null,"T 15. Le grand bain",12.5,"0"]
[]
["Petit Poilu"]
["Quantité",null,"Prix unitaire","Total"]
[null,"Pagaille au potager",9.5,{"$f":"A106*C106","v":"0"}]
[null,"L'expérience extraordinaire",9.5,"0"]
[null,"Mic-Mac chez monsieur Range-Tout",9.5,"0"]
[null,"Le prince des oiseaux",9.5,"0"]
[]
["Ariol"]
["Quantité",null,"Prix unitaire","Total"]
[null,"Un petit âne comme vous et moi",11.75,{"$f":"A113*C113","v":"0"}]
[null,"Une jolie vache",11.75,"0"]
[null,"Touche pas à mon veau",11.75,"0"]
[null,"Naphtaline nous dit toutou",11.75,"0"]
[null,"Le Canard calé",11.75,"0"]
[]
["Studio Danse"]
["Quantité",null,"Prix unitaire","Total"]
[null,"T 1",10.6,{"$f":"A121*C121","v":"0"}]
[null,"T 2",10.6,"0"]
[null,"T 3",10.6,"0"]
[null,"T 4",10.6,"0"]
[null,"T 5",10.6,"0"]
[null,"T 6",10.6,"0"]
[null,"T 7",10.6,"0"]
[null,"T 8",10.6,"0"]
[null,"T 9",10.6,"0"]
[null,"T 10",10.6,"0"]
[null,"T 11",10.6,"0"]
[]
["Les filles au chocolat"]
["Quantité",null,"Prix unitaire","Total"]
[null,"T 1. Coeur cerise",10.4,{"$f":"A135*C135","v":"0"}]
[null,"T 2. Coeur guimauve",10.4,"0"]
[null,"T 3. Coeur mandarine",10.4,"0"]
[null,"T 4. Coeur coco",10.4,"0"]
[null,"T 5. Coeur Vanille",10.4,"0"]
[null,"T 6. Coeur cookie",10.4,"0"]
[null,"T 7. Coeur salé",10.4,"0"]
[null,"T 8. Coeur sucré",10.4,"0"]
[null,"T 9. Coeur poivré",10.4,"0"]
[null,"T 10. Coeur piment",10.4,"0"]
[null,"T 11. Coeur noisette",10.4,"0"]
[null,"T 12. Coeur cannelle",10.4,"0"]
[]
["Les carnets de Cerise"]
["Quantité",null,"Prix unitaire","Total"]
[null,"T 1. Le zoo pétrifié",15.0,{"$f":"A150*C150","v":"0"}]
[null,"T 2. Le livre d'Hector",15.0,"0"]
[null,"T 3. Le dernier des cinq trésors",15.0,"0"]
[null,"T 4. La déesse sans visage",15.0,"0"]
[null,"T 5. Des premières neiges aux Perséides",15.0,"0"]
[]
["Les Légendaires"]
["Quantité",null,"Prix unitaire","Total"]
[null,"T 1 La Pierre de Jovénia",10.6,{"$f":"A158*C158","v":"0"}]
[null,"T 2 Le gardien",10.6,"0"]
[null,"T 3 Frères ennemis",10.6,"0"]
[null,"T 4 Le Réveil du Kréa-Kaos",10.6,"0"]
[null,"T 5 Cœur du passé",10.6,"0"]
[null,"T 6 Main du futur",10.6,"0"]
[null,"T 7 Aube et crépuscule",10.6,"0"]
[null,"T 8 Griffes et plumes",10.6,"0"]
[null,"T 9 Le Cycle d’Anathos : L’Alystory",10.6,"0"]
[null,"T 10 Le Cycle d’Anathos : La Marque du destin",10.6,"0"]
[null,"T 11 Le Cycle d’Anathos : Versus Inferno",10.6,"0"]
[null,"T 12 Le Cycle d’Anathos : Renaissance",10.6,"0"]
[null,"T 13 Sang Royal",10.6,"0"]
[null,"T 14 L’Héritage du mal",10.6,"0"]
[null,"T 15 Amour mortel",10.6,"0"]
[null,"T 16 L’éternité ne dure qu’un temps",10.6,"0"]
[null,"T 17 L’Exode de Kalandre",10.6,"0"]
[null,"T 18 La fin de l’histoire ?",10.6,"0"]
[null,"T 19 Artémus Le Légendaire",10.6,"0"]
[null,"T 20 Le Royaume des larmes",10.6,"0"]
[null,"T 21 La Bataille du néant",10.6,"0"]
[null,"T 22 Les Eveillés",10.6,"0"]
[null,"T 23 Les Cicatrices du monde",10.6,"0"]
[]
["Louca"]
["Quantité",null,"Prix unitaire","Total"]
[null,"T 1. Coup d'envoi",11.7,{"$f":"A184*C184","v":"0"}]
[null,"T 2. Face à face",11.7,"0"]
[null,"T 3. Si seulement...",11.7,"0"]
[null,"T 4. L'espoir fait vivre",11.7,"0"]
[null,"T 5. Les Phoenix",11.7,"0"]
[null,"T 6. Confrontations",11.7,"0"]
[null,"T 7. Foutu pour foutu",11.7,"0"]
[null,"T 8. E-sport",11.7,"0"]
[]
["Les enfants de la résistance"]
["Quantité",null,"Prix unitaire","Total"]
[null,"T 1. Premières actions",10.4,{"$f":"A195*C195","v":"0"}]
[null,"T 2. Premières répressions",10.4,"0"]
[null,"T 3. Les deux géants",10.4,"0"]
[null,"T 4. L'escalade",10.4,"0"]
[null,"T 5. Le pays divisé",10.4,"0"]
[null,"T 6. Désobéir !",10.4,"0"]
[]
["Imbattable!"]
["Quantité",null,"Prix unitaire","Total"]
[null,"T 1. Justice et légumes frais",10.4,{"$f":"A204*C204","v":"0"}]
[null,"T 2. Super-héros de proximité",10.4,"0"]
[]
["Les livres d'activités"]
["Quantité",null,"Prix unitaire","Total"]
[null,"Le yoga des enfants",19.0,{"$f":"A209*C209","v":"0"}]
[null,"Le Larousse Junior de la Cuisine",14.7,"0"]
[null,"Le Larousse Junior de la Pâtisserie",14.7,"0"]
[null,"Enigmes à tous les étages T. 1",11.5,"0"]
[null,"Enigmes à tous les étages T. 2",11.5,"0"]
[null,"Enigmes à tous les étages T. 3",11.5,"0"]
[null,"Mes petites énigmes 7-8 ans",3.95,"0"]
[null,"Mes petites énigmes 8-9 ans",3.95,"0"]
[null,"Mes petites énigmes 9-10 ans",3.95,"0"]
[null,"Mes petites énigmes 10-11 ans",3.95,"0"]
[null,"Mes petites énigmes 11-12 ans",3.95,"0"]
[]
[null,null,"Total général",{"$f":"SUM(D18:D25)+SUM(D29:D44)+SUM(D48:D75)+SUM(D79:D84)+SUM(D88:D102)+SUM(D106:D109)+SUM(D113:D117)+SUM(D121:D131)+SUM(D135:D146)+SUM(D150:D154)+SUM(D158:D180)+SUM(D184:D191)+SUM(D195:D200)+SUM(D204:D205)+SUM(D209:D219)","v":"0"}]